fUSD/lending_fUSD_20251023
["ID","MTS","AMOUNT","RATE_DAILY","PERIOD"]
[392125682,1761185432819,-162.01763232,0.00039575,7]
[392125684,1761185432828,-150.0,0.00039575,4]
[392125687,1761185432837,-150.0,0.00039575,4]
[392125688,1761185432846,-150.0,0.00039575,4]
[392125689,1761185432856,-151.52883757,0.00039575,4]
[392125690,1761185432865,-150.0,0.00039575,4]
[392125691,1761185432878,-150.0,0.00039575,4]
[392125692,1761185432888,-150.0,0.00039575,4]
[392125693,1761185432897,-150.59739649,0.00039575,4]
[392125694,1761185432906,-150.56114179,0.00039575,4]
[392125695,1761185432915,-150.0,0.00039575,4]
[392125696,1761185432925,-150.0,0.00039575,4]
[392125697,1761185432934,-150.0,0.00039575,4]
[392125698,1761185432943,-151.7948404,0.00039575,4]
[392125699,1761185432952,-150.0,0.00039575,4]
[392125700,1761185432961,-150.0,0.00039575,4]
[392125701,1761185432970,-150.0,0.00039575,4]
[392125702,1761185432979,-183.02,0.00039718,2]
[392125703,1761185432988,-500.0,0.00039748,5]
[392125704,1761185432997,-150.0,0.00039914,7]
[392125705,1761185433006,-150.0,0.00039914,7]
[392125706,1761185433016,-150.0,0.00040125,7]
[392125707,1761185433026,-150.0,0.00040125,7]
[392125708,1761185433046,-150.0,0.00040125,7]
[392125709,1761185433055,-150.0,0.00040252,7]
[392125710,1761185433064,-150.0,0.00040252,7]
[392125711,1761185433074,-150.0,0.00040308,7]
[392125712,1761185433084,-150.0,0.00040455,7]
[392125713,1761185433093,-150.0,0.00040455,7]
[392125714,1761185433103,-150.0,0.0004059,7]
[392125715,1761185433113,-150.0,0.0004059,7]
[392125716,1761185433122,-150.0,0.00040675,7]
[392125717,1761185433132,-150.0,0.00040675,7]
[392125718,1761185433141,-150.0,0.00040675,7]
[392125719,1761185433151,-150.0,0.00040675,7]
[392125720,1761185433160,-204.77704411,0.00040731,2]
[392125721,1761185433170,-18207.69,0.00040812,2]
[392125722,1761185433179,-1500.0,0.00040831,16]
[392125723,1761185433188,-3521.71,0.00040831,2]
[392125724,1761185433198,-5000.0,0.00040831,120]
[392125725,1761185433207,-150.0,0.00040832,2]
[392125726,1761185433216,-610.0,0.00040842,2]
[392125727,1761185433226,-666.0,0.00040906,3]
[392125728,1761185433236,-1232.0,0.0004092,5]
[392125729,1761185433245,-150.0,0.00040928,7]
[392125730,1761185433254,-150.0,0.00040928,7]
[392125731,1761185433263,-150.0,0.00041041,7]
[392125732,1761185433273,-150.0,0.00041041,7]
[392125733,1761185433282,-1091.0,0.00041154,30]
[392125734,1761185433291,-150.0,0.00041224,30]
[392125735,1761185433300,-150.0,0.00041224,30]
[392125736,1761185433309,-150.0,0.00041224,30]
[392125737,1761185433318,-194.07,0.00041229,2]
[392125738,1761185433327,-150.0,0.00041267,30]
[392125739,1761185433336,-150.0,0.00041267,30]
[392125740,1761185433345,-150.0,0.00041334,30]
[392125741,1761185433354,-150.0,0.00041334,30]
[392125742,1761185433363,-168.0,0.00041547,2]
[392125743,1761185433372,-168.0,0.00041597,2]
[392125744,1761185433382,-150.0,0.00041605,30]
[392125745,1761185433391,-150.0,0.00041605,30]
[392125746,1761185433404,-350.0,0.00041717,2]
[392125747,1761185433413,-150.0,0.00041774,30]
[392125748,1761185433422,-150.0,0.00041774,30]
[392125749,1761185433431,-150.0,0.00041774,30]
[392125750,1761185433440,-150.0,0.00041774,30]
[392125751,1761185433450,-150.0,0.00041774,30]
[392125752,1761185433459,-150.0,0.00041774,30]
[392125753,1761185433468,-150.0,0.00041774,30]
[392125754,1761185433477,-810.0,0.00041871,7]
[392125755,1761185433487,-150.0,0.00041943,30]
[392125756,1761185433496,-150.0,0.00041943,30]
[392125757,1761185433506,-483.0,0.00042042,7]
[392125758,1761185433516,-166.66,0.00042056,2]
[392125759,1761185433525,-350.0,0.00042111,2]
[392125760,1761185433535,-150.0,0.00042214,30]
[392125761,1761185433545,-150.0,0.00042214,30]
[392125762,1761185433559,-150.0,0.00042281,30]
[392125763,1761185433568,-150.0,0.00042281,30]
[392125764,1761185433577,-320.0,0.00042322,120]
[392125765,1761185433587,-150.0,0.00042324,30]
[392125766,1761185433598,-150.0,0.00042324,30]
[392125767,1761185433607,-150.0,0.00042324,30]
[392125768,1761185433616,-150.0,0.00042507,30]
[392125769,1761185433626,-150.0,0.00042507,30]
[392125770,1761185433636,-350.0,0.00042575,2]
[392125771,1761185433645,-350.0,0.00042579,2]
[392125772,1761185433655,-150.0,0.0004262,30]
[392125773,1761185433664,-150.0,0.0004262,30]
[392125774,1761185433674,-320.0,0.00042733,7]
[392125775,1761185433683,-559.728,0.00042855,2]
[392125776,1761185433693,-6536.0,0.00042855,2]
[392125777,1761185433703,-2592.0,0.00042855,2]
[392125778,1761185433712,-150.0,0.00042873,30]
[392125779,1761185433721,-150.0,0.00042873,30]
[392125780,1761185433731,-150.0,0.00042873,30]
[392125781,1761185433741,-150.0,0.00042873,30]
[392125782,1761185433751,-150.0,0.00042958,30]
[392125783,1761185433760,-150.0,0.00042958,30]
[392125784,1761185433770,-200.0,0.00042985,2]
[392125785,1761185433779,-159.66,0.00043022,2]
[392125786,1761185433789,-150.0,0.00043093,30]
[392125787,1761185433798,-150.0,0.00043093,30]
[392125788,1761185433806,-476.13251256,0.00043108,2]
[392125789,1761185433815,-161.44845622,0.0004322,10]
[392125790,1761185433824,-502.18175265,0.0004322,10]
[392125791,1761185433833,-501.31838142,0.0004322,10]
[392125792,1761185433842,-150.0,0.0004324,30]
[392125793,1761185433851,-150.0,0.00043296,30]
[392125794,1761185433861,-150.0,0.00043296,30]
[392125795,1761185433870,-1091.0,0.0004332,30]
[392125796,1761185433880,-150.0,0.00043423,30]
[392125797,1761185433889,-150.0,0.00043423,30]
[392125798,1761185433899,-150.0,0.00043423,30]
[392125799,1761185433908,-166.66,0.00043444,2]
[392125800,1761185433917,-414.2053,0.0004359,2]
[392125801,1761185433928,-1058.73216116,0.00043591,30]
[392125802,1761185433937,-150.0,0.00043634,30]
[392125803,1761185433948,-150.0,0.00043634,30]
[392125804,1761185433959,-702.0,0.0004365,30]
[392125805,1761185433970,-1081.8102,0.0004369,2]
[392125806,1761185433979,-500.0,0.00043734,7]
[392125807,1761185433989,-500.0,0.00043734,120]
[392125808,1761185433997,-500.0,0.00043734,120]
[392125809,1761185434006,-542.32393848,0.00043759,30]
[392125810,1761185434015,-150.181,0.00043772,2]
[392125811,1761185434025,-150.0,0.00043788,2]
[392125812,1761185434034,-411.7374563,0.00043789,120]
[392125813,1761185434043,-320.0,0.0004379,2]
[392125814,1761185434052,-604.53537492,0.00043795,2]
[392125815,1761185434061,-2009.51,0.000438,120]
[392125816,1761185434070,-1000.0,0.000438,15]
[392125817,1761185434079,-260.42410143,0.00043808,2]
[392125818,1761185434088,-500.0,0.00043835,120]
[392125819,1761185434097,-500.0,0.00043835,120]
[392125820,1761185434106,-500.0,0.00043835,120]
[392125821,1761185434115,-500.0,0.00043835,120]
[392125822,1761185434125,-959.68,0.00043835,2]
[392125823,1761185434134,-500.0,0.00043835,120]
[392125824,1761185434143,-276.73795159,0.00043835,120]
[392125825,1761185434152,-261.53450599,0.00043835,120]
[392125826,1761185434162,-500.0,0.00043835,120]
[392125827,1761185434171,-227.45672492,0.00043835,120]
[392125828,1761185434181,-538.70398428,0.00043835,120]
[392125829,1761185434190,-350.0,0.00043891,7]
[392125830,1761185434199,-922.95275373,0.00043898,15]
[392125831,1761185434209,-500.0,0.00043899,120]
[392125832,1761185434219,-389.55787284,0.00043899,120]
[392125833,1761185434229,-500.0,0.00043899,120]
[392125834,1761185434239,-748.02,0.00043899,120]
[392125835,1761185434249,-500.0,0.00043899,120]
[392125836,1761185434258,-500.0,0.00043899,120]
[392125837,1761185434432,-500.0,0.00043899,60]
[392125838,1761185434442,-500.0,0.00043899,120]
[392125839,1761185434451,-482.69848998,0.00043899,120]
[392125840,1761185434461,-185.83806611,0.000439,13]
[392125841,1761185434470,-2100.0,0.000439,16]
[392125842,1761185434479,-194.01117957,0.000439,15]
[392125843,1761185434488,-1816.31873528,0.000439,16]
[392125844,1761185434497,-164.66793363,0.000439,28]
[392125845,1761185434506,-1111.69966734,0.000439,15]
[392125846,1761185434517,-157.46326484,0.00043973,30]
[392125847,1761185434526,-162.44314539,0.00043973,30]
[392125848,1761185434536,-162.19021309,0.00043973,30]
[392125849,1761185434546,-161.16722895,0.00043973,30]
[392125850,1761185434560,-163.88615832,0.00043973,30]
[392125851,1761185434568,-153.23992756,0.00043973,30]
[392125852,1761185434577,-152.94100216,0.00043973,30]
[392125853,1761185434587,-158.27867007,0.00043973,30]
[392125854,1761185434596,-151.54395466,0.00043973,30]
[392125855,1761185434606,-156.98001532,0.00043973,30]
[392125856,1761185434615,-155.92779982,0.00043973,30]
[392125857,1761185434625,-162.92521406,0.00043973,30]
[392125858,1761185434634,-151.0,0.00043987,120]
[392125859,1761185434643,-156.87564506,0.00043989,120]
[392125860,1761185434652,-500.0,0.00043989,120]
[392125861,1761185434661,-267.79454714,0.00043989,120]
[392125862,1761185434670,-100368.164201,0.0004399,3]
[392125863,1761185434679,-248.54123844,0.0004399,7]
[392125864,1761185434688,-156.05,0.0004399,2]
[392125865,1761185434697,-1017.6907077,0.00043998,2]
[392125866,1761185434707,-500.0,0.00043998,120]
[392125867,1761185434716,-500.0,0.00043998,2]
[392125868,1761185434725,-589.08252342,0.00043999,60]
[392125869,1761185434734,-500.0,0.00043999,120]
[392125870,1761185434743,-500.0,0.00043999,120]
[392125871,1761185434753,-500.0,0.00043999,120]
[392125872,1761185434762,-500.0,0.00043999,120]
[392125873,1761185434772,-500.0,0.00043999,120]
[392125874,1761185434781,-500.0,0.00043999,120]
[392125875,1761185434791,-500.0,0.00043999,120]
[392125876,1761185434800,-500.0,0.00043999,120]
[392125877,1761185434809,-500.0,0.00043999,120]
[392125878,1761185434818,-500.0,0.00043999,120]
[392125879,1761185434827,-500.0,0.00043999,7]
[392125880,1761185434837,-516.00192321,0.00043999,7]
[392125881,1761185434846,-500.0,0.00043999,120]
[392125882,1761185434855,-500.0,0.00043999,120]
[392125883,1761185434863,-500.0,0.00043999,120]
[392125884,1761185434873,-500.0,0.00043999,120]
[392125885,1761185434882,-500.0,0.00043999,120]
[392125886,1761185434891,-748.02,0.00043999,120]
[392125887,1761185434900,-748.02,0.00043999,120]
[392125888,1761185434909,-748.02,0.00043999,120]
[392125889,1761185434918,-748.02,0.00043999,120]
[392125890,1761185434927,-748.02,0.00043999,120]
[392125891,1761185434936,-523.99537992,0.00043999,120]
[392125892,1761185434946,-959.68,0.00043999,2]
[392125893,1761185434955,-959.68,0.00043999,2]
[392125894,1761185434966,-959.68,0.00043999,2]
[392125895,1761185434975,-959.68,0.00043999,2]
[392125896,1761185434985,-959.68,0.00043999,2]
[392125897,1761185434994,-153.99852123,0.00043999,120]
[392125898,1761185435003,-500.0,0.00043999,120]
[392125899,1761185435012,-500.0,0.00043999,120]
[392125900,1761185435022,-500.0,0.00043999,120]
[392125901,1761185435031,-500.0,0.00043999,120]
[392125902,1761185435040,-609.80181565,0.00043999,120]
[392125903,1761185435049,-202.4643978,0.00043999,120]
[392125904,1761185435058,-300.0,0.00043999,30]
[392125905,1761185435067,-300.0,0.00043999,30]
[392125906,1761185435076,-676.21188281,0.00043999,30]
[392125907,1761185435085,-500.0,0.00043999,120]
[392125908,1761185435094,-500.0,0.00043999,120]
[392125909,1761185435104,-500.0,0.00043999,120]
[392125910,1761185435112,-500.0,0.00043999,120]
[392125911,1761185435122,-500.0,0.00043999,120]
[392125912,1761185435130,-500.0,0.00043999,120]
[392125913,1761185435139,-344.54,0.00043999,120]
[392125914,1761185435149,-500.0,0.00043999,120]
[392125915,1761185435158,-500.0,0.00043999,120]
[392125916,1761185435167,-300.34,0.00043999,120]
[392125917,1761185435177,-500.0,0.00043999,2]
[392125918,1761185435186,-500.0,0.00043999,2]
[392125919,1761185435195,-500.0,0.00043999,2]
[392125920,1761185435203,-500.0,0.00043999,2]
[392125921,1761185435212,-3582.13298658,0.00044,18]
[392125922,1761185435222,-755.32,0.00044,7]
[392125923,1761185435231,-755.32,0.00044,7]
[392125924,1761185435240,-755.32,0.00044,7]
[392125925,1761185435250,-755.32,0.00044,7]
[392125926,1761185435259,-22373.31258455,0.00044,2]
[392125927,1761185435277,-506.58,0.00044,2]
[392125928,1761185435287,-1367.74106718,0.00044,2]
[392125929,1761185435298,-1618.9,0.00044,2]
[392125930,1761185435310,-331.63579367,0.00044,2]
[392125931,1761185435320,-8352.69195696,0.00044,2]
[392125932,1761185435331,-296516.31151752,0.00044,2]
[392125938,1761185438168,-2548.26467723,0.00044,2]
[392125940,1761185438180,-2036.61775091,0.00044,2]
[392125943,1761185438222,-8429.93775452,0.00044,2]
[392125944,1761185438277,-471.87366345,0.00044,2]
[392125945,1761185438288,-1374.5491995,0.00044,2]
[392125953,1761185438602,-1241.52824401,0.00044,2]
[392125973,1761185440315,-139.05840587,0.00044,2]
[392125974,1761185440327,-59330.79850693,0.00044,2]
[392125975,1761185440338,-162855.54689874,0.00044,2]
[392125976,1761185440372,-935.68412485,0.00044,2]
[392125977,1761185440383,-721.39988999,0.00044,2]
[392125978,1761185440426,-296.32479955,0.00044,2]
[392125979,1761185440437,-1115.90003394,0.00044,2]
[392125980,1761185440448,-4045.39821024,0.00044,2]
[392125981,1761185441362,-1.6e-07,0.00044,2]
[392125982,1761185441376,-3645.5959239,0.00044,2]
[392125983,1761185441389,-1445.52786979,0.00044,2]
[392125985,1761185443254,-500.0,0.00043998,120]
[392125986,1761185443264,-24221.28672805,0.00044,2]
[392125987,1761185443423,-336.82027646,0.00044,2]
[392125988,1761185443509,-31.39534677,0.00044,2]
[392125989,1761185443521,-1189.49150251,0.00044,2]
[392125990,1761185443532,-1595.00540461,0.00044,2]
[392125991,1761185443543,-263.58446541,0.00044,2]
[392125992,1761185443558,-6855.90067227,0.00044,2]
[392125993,1761185443570,-560.47152291,0.00044,2]
[392125994,1761185443581,-931.09196623,0.00044,2]
[392125995,1761185446354,-43.53293561,0.00032941,2]
[392125996,1761185446424,-107.46706439,0.00032941,2]
[392125997,1761185446433,-181.956094,0.00044,2]
[392125998,1761185611071,-153.21238773,0.00024932,2]
[392125999,1761185613142,-300.0,0.00024932,2]
[392126000,1761185730895,-202.20063012,0.00021538,2]
[392126001,1761185733010,-193.69127926,0.00021538,2]
[392126002,1761185734676,-15.14809062,0.00021538,2]
[392126003,1761185734698,-249.5800069,0.00022672,2]
[392126004,1761185736784,-161.4599931,0.00022672,2]
[392126005,1761185736807,-73.81190938,0.00023805,2]
[392126006,1761185739360,-297.0489,0.00023805,2]
[392126007,1761185740896,-40.17919062,0.00023805,2]
[392126008,1761185740917,-46.78761227,0.00024932,2]
[392126009,1761185740939,-248.44930115,0.00024939,2]
[392126010,1761185955901,-162.59069885,0.00024939,2]
[392126011,1761185955926,-22.4319479,0.00026072,2]
[392126013,1761186018503,-164.33358033,0.00026072,2]
[392126014,1761186019995,-173.07849288,0.00026072,2]
[392126015,1761186021505,-51.19597889,0.00026072,2]
[392126016,1761186021529,-111.3919479,0.00027106,2]
[392126017,1761186023808,-166.52519143,0.00027106,2]
[392126018,1761186026668,-324.79029443,0.00027106,2]
[392126019,1761186029977,-233.99785473,0.00027106,2]
[392126020,1761186032795,-208.62598893,0.00027106,2]
[392126021,1761186048384,-463.61669152,0.00027106,2]
[392126022,1761186051516,-186.09379657,0.00027106,2]
[392126023,1761186054309,-175.40672523,0.00027106,2]
[392126024,1761186055855,-351.83752803,0.00027106,2]
[392126027,1761186303509,-204.90186864,0.00027156,2]
[392126028,1761186308285,2510036.41485198,0.00015,2]
[392126029,1761186308540,678.46536876,0.00035803,90]
[392126030,1761186310783,11434.15019033,0.000154,2]
[392126031,1761186315195,193.51882875,0.00035803,30]
[392126032,1761186325883,14073.45719449,0.000175,2]
[392126033,1761186329304,259.68573082,0.00035803,30]
[392126035,1761186337130,7541.00963588,9e-05,2]
[392126036,1761186363491,7911.69828279,8e-05,2]
[392126037,1761186365485,256.96802095,0.00035803,120]
[392126040,1761186391457,172.50588862,0.00035803,60]
[392126041,1761186394115,232.1,0.00013699,2]
[392126042,1761186419041,5000.00452491,0.000162,5]
[392126043,1761186436250,205.0,9.8e-05,2]
[392126044,1761186440490,257.25038679,0.000101,2]
[392126045,1761186449123,-851.57684773,0.0002,2]
[392126046,1761186449143,-232.1,0.00020187,2]
[392126047,1761186449161,-438.14203093,0.0002465,2]
[392126048,1761186449181,-404.22698631,0.00025,2]
[392126049,1761186449200,-160.95008191,0.00025779,2]
[392126050,1761186449221,-17477.69865381,0.00025879,2]
[392126051,1761186449241,-232.1,0.00026676,2]
[392126052,1761186449261,-1314.36,0.00027,2]
[392126053,1761186449280,-160.95008191,0.00027009,2]
[392126054,1761186449298,-1041.19105377,0.000271,2]
[392126055,1761186449317,-134.84091426,0.00027156,2]
[392126056,1761186449337,-201.80551164,0.000272,2]
[392126057,1761186449359,-411.04,0.00027206,2]
[392126058,1761186449377,-1314.36,0.000275,2]
[392126059,1761186449397,-250.58245301,0.00027678,2]
[392126060,1761186449420,-455.48893809,0.00027999,2]
[392126061,1761186449440,-688.0,0.00027999,2]
[392126062,1761186449459,-23918.88155931,0.00028,2]
[392126063,1761186469413,153.16985342,0.00035803,120]
[392126064,1761186478042,153.05344956,0.00035803,120]
[392126065,1761186479188,32112.84099106,0.00015,2]
[392126066,1761186479821,246.55332331,0.00035803,30]
[392126069,1761186510850,1767.3808424,0.00035803,60]
[392126070,1761186511167,150.7086288,0.00035803,30]
[392126072,1761186522604,249.50932186,0.00035803,60]
[392126073,1761186524655,168.24316611,0.00035803,30]
[392126075,1761186525575,552.45188344,0.00035803,30]
[392126076,1761186526186,486.79492635,0.00035803,60]
[392126077,1761186527421,161.38281248,0.00012,2]
[392126078,1761186551085,-461.45626443,0.00021,3]
[392126079,1761186551108,-1560.51233107,0.000231,2]
[392126080,1761186551129,-2500.0,0.000231,2]
[392126081,1761186551150,-250.0,0.000231,2]
[392126082,1761186551171,-51558.04221674,0.000232,2]
[392126083,1761186551190,-219.14549147,0.00025,3]
[392126084,1761186551211,-250.0,0.00027,2]
[392126085,1761186551232,-250.0,0.000275,2]
[392126086,1761186551255,-150.0,0.000275,120]
[392126087,1761186551275,-10123.36981634,0.00028,2]
[392126088,1761186551294,-160.95008191,0.00028239,2]
[392126089,1761186551315,-411.04,0.00028339,2]
[392126090,1761186551334,-1276.61863291,0.00028646,15]
[392126091,1761186551354,-411.04,0.00029473,2]
[392126092,1761186551374,-300.0,0.00029816,2]
[392126093,1761186551396,-1200.0,0.00029816,2]
[392126094,1761186551417,-504.94398399,0.00029937,7]
[392126095,1761186551437,-979.69121624,0.0003,5]
[392126096,1761186555199,-3933.11614005,0.0003,5]
[392126097,1761186555219,-491.90923731,0.0003,120]
[392126098,1761186555237,-2073.59,0.0003,30]
[392126099,1761186555256,-153.88510384,0.0003013,120]
[392126100,1761186555276,-477.97880591,0.0003013,5]
[392126101,1761186555297,-411.04,0.00030607,2]
[392126102,1761186555319,-193.69127926,0.00030885,7]
[392126103,1761186555341,-2427.88044772,0.00030888,60]
[392126104,1761186558103,-185.21188249,0.00030888,60]
[392126106,1761186606151,576.69,0.00027397,120]
[392126107,1761186617921,576.68,0.00018008,2]
[392126108,1761186618384,25479.75350909,0.0002,2]
[392126123,1761186631459,-871.0,0.0002,2]
[392126124,1761186631471,-548.11708861,0.0002,2]
[392126125,1761186631483,-2682.87171954,0.0002,2]
[392126126,1761186631511,-418.26636555,0.0002,2]
[392126127,1761186631520,-36.96581126,0.00030888,60]
[392126128,1761186631532,-1961.94354208,0.00030888,60]
[392126129,1761186631541,-335.6133346,0.00031,5]
[392126130,1761186631550,-1619.92404768,0.00031,2]
[392126131,1761186631560,-59.47624986,0.00031,2]
[392126132,1761186631573,-90.52375014,0.00031,2]
[392126133,1761186631582,-1600.0,0.00031734,3]
[392126134,1761186631590,-1898.01230376,0.00031735,2]
[392126135,1761186631601,-2290.94883527,0.00031735,2]
[392126136,1761186631611,-224.88969874,0.0003174,2]
[392126137,1761186631626,-186.15030126,0.0003174,2]
[392126138,1761186631635,-152.75,0.00032181,2]
[392126139,1761186631644,-400.0,0.00032231,3]
[392126140,1761186631653,-301.0,0.00032231,3]
[392126141,1761186631662,-14604.98,0.00032232,2]
[392126142,1761186631671,-1924.26,0.00032232,2]
[392126143,1761186631681,-1585.55,0.00032232,2]
[392126144,1761186631692,-9999.99,0.00032232,2]
[392126145,1761186631710,-6555.96,0.00032232,2]
[392126146,1761186631721,-1529.48,0.00032232,30]
[392126147,1761186631732,-411.04,0.00032874,2]
[392126148,1761186631741,-232.1,0.00033165,2]
[392126149,1761186631751,-363.92537945,0.00033977,120]
[392126150,1761186631761,-250.0,0.00033977,2]
[392126151,1761186631771,-13755.04134709,0.00033999,2]
[392126152,1761186631780,-411.04,0.00034007,2]
[392126153,1761186631790,-1124.0,0.00034283,3]
[392126154,1761186631799,-246.0,0.00034658,3]
[392126155,1761186631809,-340.22374761,0.0003495,120]
[392126156,1761186631819,-151.0,0.0003512,2]
[392126157,1761186631830,-151.0,0.0003512,2]
[392126158,1761186631839,-151.0,0.0003512,2]
[392126159,1761186631849,-277.18933947,0.0003512,2]
[392126160,1761186631859,-411.04,0.00035141,2]
[392126161,1761186631869,-15336.0,0.000353,2]
[392126162,1761186631878,-5513.0,0.000358,3]
[392126163,1761186631888,-153.0,0.00036162,90]
[392126164,1761186631898,-153.0,0.00036162,90]
[392126165,1761186631908,-153.0,0.00036162,90]
[392126166,1761186631918,-153.0,0.00036162,90]
[392126167,1761186631927,-153.0,0.00036162,90]
[392126168,1761186631938,-153.0,0.00036162,90]
[392126169,1761186631947,-153.0,0.00036162,90]
[392126170,1761186631956,-153.0,0.00036162,90]
[392126171,1761186631966,-153.0,0.00036162,90]
[392126172,1761186631975,-153.0,0.00036162,90]
[392126173,1761186631986,-153.0,0.00036162,90]
[392126174,1761186632001,-153.0,0.00036162,90]
[392126175,1761186632011,-153.0,0.00036162,90]
[392126176,1761186632020,-153.0,0.00036162,90]
[392126177,1761186632030,-153.0,0.00036162,90]
[392126178,1761186632039,-5513.0,0.000362,5]
[392126179,1761186632048,-411.04,0.00036275,2]
[392126180,1761186632063,-787.10039882,0.000365,120]
[392126181,1761186632075,-155.21,0.00037294,2]
[392126182,1761186632088,-411.04,0.00037408,2]
[392126183,1761186632098,-214.45,0.00037909,2]
[392126184,1761186632107,-411.04,0.00038542,2]
[392126185,1761186632117,-500.0,0.00038594,30]
[392126186,1761186632126,-155.21,0.00038693,2]
[392126187,1761186632136,-708.34,0.00038934,2]
[392126188,1761186632146,-150.45051851,0.00039,120]
[392126189,1761186632156,-569.59901657,0.00039157,5]
[392126190,1761186632166,-712.55,0.00039381,2]
[392126191,1761186632176,-2101.28,0.00039428,2]
[392126192,1761186632187,-232.1,0.00039654,2]
[392126193,1761186632196,-411.04,0.00039675,2]
[392126194,1761186632206,-3728.23372251,0.0003985,60]
[392126195,1761186632215,-152.0,0.00039899,3]
[392126196,1761186632226,-223.08084493,0.00039952,2]
[392126197,1761186632238,-174.59272281,0.0004,120]
[392126198,1761186632248,-179.86635809,0.0004,120]
[392126199,1761186632258,-153.80869401,0.0004,30]
[392126200,1761186632267,-102.77331958,0.00040091,2]
[392126201,1761186632290,-52.43668042,0.00040091,2]
[392126202,1761186632302,-299.16575325,0.00040488,4]
[392126203,1761186632313,-150.0,0.00040488,4]
[392126204,1761186632323,-150.0,0.00040488,4]
[392126205,1761186632332,-150.0,0.00040488,4]
[392126206,1761186632342,-150.0,0.00040488,4]
[392126207,1761186632352,-150.0,0.00040488,4]
[392126208,1761186632361,-150.0,0.00040488,4]
[392126209,1761186632371,-150.89,0.00040558,2]
[392126210,1761186632380,-250.0,0.00040558,2]
[392126211,1761186632390,-360.0,0.00040558,2]
[392126212,1761186632399,-607.17525351,0.00040712,2]
[392126213,1761186632408,-411.04,0.00040809,2]
[392126214,1761186632418,-166.66,0.00040922,30]
[392126215,1761186632428,-178.0,0.00041,90]
[392126216,1761186632436,-1091.0,0.00041064,5]
[392126217,1761186632446,-557.0,0.00041189,2]
[392126218,1761186632455,-151.61,0.00041205,120]
[392126219,1761186632465,-150.0,0.00041346,30]
[392126220,1761186632477,-155.21,0.0004149,2]
[392126221,1761186632487,-181.27965509,0.00041538,2]
[392126222,1761186632496,-331.77861104,0.00041538,2]
[392126223,1761186632506,-152.0,0.00041661,4]
[392126224,1761186632516,-173.43787681,0.00041661,62]
[392126225,1761186632715,-187.78637493,0.00041661,62]
[392126226,1761186632729,-270.75062507,0.00041661,62]
[392126227,1761186632739,-346.57,0.00041738,7]
[392126228,1761186632750,-166.66,0.00041784,30]
[392126229,1761186632760,-215.38,0.00041852,2]
[392126230,1761186632770,-411.04,0.00041943,2]
[392126231,1761186632781,-1263.0,0.00042446,2]
[392126232,1761186632791,-223.62238648,0.00042499,2]
[392126233,1761186632802,-422.37761352,0.00042499,2]
[392126234,1761186632815,-166.66,0.00042645,30]
[392126235,1761186632826,-168.0,0.00042745,2]
[392126236,1761186632836,-155.21,0.00042888,2]
[392126237,1761186632846,-500.0,0.00042969,10]
[392126238,1761186632856,-502.62312711,0.00042969,10]
[392126239,1761186632865,-501.99909589,0.00042969,10]
[392126240,1761186632875,-224.51830171,0.00042969,10]
[392126241,1761186632884,-409.9878238,0.00042969,10]
[392126242,1761186632894,-500.0,0.00042969,10]
[392126243,1761186632904,-500.67498083,0.00042969,10]
[392126244,1761186632913,-157.16320177,0.00042969,10]